[Event "Titled Tuesday Blitz October 31 Late 2023"]
[White "JackRodgers"]
[Black "Elbebiber"]
[WhiteElo "2527"]
[BlackElo "2168"]
[Result "1-0"]
[Round "4"]
[TimeControl "180+1"]
[Date "2023.10.31"]
[WhiteClock "0:00:05"]
[BlackClock "0:00:00"]
[Board "90"]

1. d4 {[%clk 0:03:00]}  e6 {[%clk 0:02:57]} 2. c4 {[%clk 0:03:00]}  Nf6 {[%clk 0:02:56]} 3. Nf3 {[%clk 0:02:59]}  Bb4+ {[%clk 0:02:55]} 4. Bd2 {[%clk 0:02:58]}  Qe7 {[%clk 0:02:47]} 5. a3 {[%clk 0:02:53]}  Bxd2+ {[%clk 0:02:41]} 6. Nbxd2 {[%clk 0:02:54]}  b6 {[%clk 0:02:36]} 7. e4 {[%clk 0:02:53]}  d6 {[%clk 0:02:35]} 8. e5 {[%clk 0:02:49]}  dxe5 {[%clk 0:02:32]} 9. dxe5 {[%clk 0:02:50]}  Nfd7 {[%clk 0:02:29]} 10. Bd3 {[%clk 0:02:50]}  Bb7 {[%clk 0:02:25]} 11. Qe2 {[%clk 0:02:49]}  Nc6 {[%clk 0:02:10]} 12. O-O {[%clk 0:02:34]}  a5 {[%clk 0:02:10]} 13. Rfe1 {[%clk 0:02:29]}  Nc5 {[%clk 0:02:06]} 14. Bc2 {[%clk 0:02:27]}  a4 {[%clk 0:02:01]} 15. Rad1 {[%clk 0:02:24]}  Rd8 {[%clk 0:01:53]} 16. Nb1 {[%clk 0:02:21]}  O-O {[%clk 0:01:43]} 17. Nc3 {[%clk 0:02:19]}  Rxd1 {[%clk 0:01:34]} 18. Rxd1 {[%clk 0:02:19]}  Ra8 {[%clk 0:01:33]} 19. h4 {[%clk 0:02:19]}  h6 {[%clk 0:01:31]} 20. h5 {[%clk 0:02:12]}  Kf8 {[%clk 0:01:12]} 21. Ne4 {[%clk 0:01:44]}  Na5 {[%clk 0:00:53]} 22. Nc3 {[%clk 0:01:26]}  Nab3 {[%clk 0:00:49]} 23. Bb1 {[%clk 0:00:57]}  Bc6 {[%clk 0:00:48]} 24. Qc2 {[%clk 0:00:49]}  Ke8 {[%clk 0:00:41]} 25. Qh7 {[%clk 0:00:38]}  Qf8 {[%clk 0:00:41]} 26. Ne4 {[%clk 0:00:35]}  Nxe4 {[%clk 0:00:36]} 27. Bxe4 {[%clk 0:00:36]}  Bxe4 {[%clk 0:00:31]} 28. Qxe4 {[%clk 0:00:36]}  Ke7 {[%clk 0:00:20]} 29. Qc6 {[%clk 0:00:35]}  Qc8 {[%clk 0:00:20]} 30. Nd4 {[%clk 0:00:26]}  Nc5 {[%clk 0:00:19]} 31. Nb5 {[%clk 0:00:22]}  Qb7 {[%clk 0:00:13]} 32. Qxc7+ {[%clk 0:00:10]}  Qxc7 {[%clk 0:00:12]} 33. Nxc7 {[%clk 0:00:11]}  Rc8 {[%clk 0:00:12]} 34. Nb5 {[%clk 0:00:12]}  Nd7 {[%clk 0:00:10]} 35. Nd6 {[%clk 0:00:11]}  Rc6 {[%clk 0:00:10]} 36. f4 {[%clk 0:00:11]}  f6 {[%clk 0:00:10]} 37. exf6+ {[%clk 0:00:07]}  gxf6 {[%clk 0:00:09]} 38. Kf2 {[%clk 0:00:07]}  Rxd6 {[%clk 0:00:09]} 39. Rg1 {[%clk 0:00:06]}  Rd4 {[%clk 0:00:07]} 40. Ke3 {[%clk 0:00:06]}  Rxc4 {[%clk 0:00:08]} 41. g4 {[%clk 0:00:07]}  Rc5 {[%clk 0:00:07]} 42. Kd4 {[%clk 0:00:06]}  Rd5+ {[%clk 0:00:07]} 43. Ke4 {[%clk 0:00:06]}  Nc5+ {[%clk 0:00:08]} 44. Kf3 {[%clk 0:00:06]}  Kd6 {[%clk 0:00:08]} 45. Re1 {[%clk 0:00:05]}  Rd3+ {[%clk 0:00:08]} 46. Ke2 {[%clk 0:00:05]}  Rd5 {[%clk 0:00:08]} 47. Rg1 {[%clk 0:00:05]}  e5 {[%clk 0:00:09]} 48. Kf3 {[%clk 0:00:05]}  exf4 {[%clk 0:00:09]} 49. Kxf4 {[%clk 0:00:06]}  Re5 {[%clk 0:00:09]} 50. Rd1+ {[%clk 0:00:06]}  Ke6 {[%clk 0:00:09]} 51. Rd8 {[%clk 0:00:06]}  Ke7 {[%clk 0:00:09]} 52. Rh8 {[%clk 0:00:06]}  Ne6+ {[%clk 0:00:09]} 53. Kg3 {[%clk 0:00:06]}  Rg5 {[%clk 0:00:08]} 54. Rh7+ {[%clk 0:00:07]}  Kd6 {[%clk 0:00:08]} 55. Rxh6 {[%clk 0:00:07]}  Ke5 {[%clk 0:00:09]} 56. Rh8 {[%clk 0:00:07]}  f5 {[%clk 0:00:08]} 57. Rb8 {[%clk 0:00:07]}  Rxg4+ {[%clk 0:00:08]} 58. Kf3 {[%clk 0:00:07]}  Rf4+ {[%clk 0:00:08]} 59. Ke3 {[%clk 0:00:07]}  Re4+ {[%clk 0:00:08]} 60. Kd3 {[%clk 0:00:07]}  Nf4+ {[%clk 0:00:08]} 61. Kc3 {[%clk 0:00:08]}  Nd5+ {[%clk 0:00:08]} 62. Kd3 {[%clk 0:00:08]}  Kf4 {[%clk 0:00:08]} 63. h6 {[%clk 0:00:07]}  Nf6 {[%clk 0:00:08]} 64. Rxb6 {[%clk 0:00:06]}  Nh7 {[%clk 0:00:07]} 65. Rb7 {[%clk 0:00:06]}  Ng5 {[%clk 0:00:08]} 66. h7 {[%clk 0:00:05]}  Nxh7 {[%clk 0:00:08]} 67. Rxh7 {[%clk 0:00:05]}  Re3+ {[%clk 0:00:07]} 68. Kd2 {[%clk 0:00:04]}  Rg3 {[%clk 0:00:07]} 69. Ra7 {[%clk 0:00:03]}  Rg2+ {[%clk 0:00:06]} 70. Kc3 {[%clk 0:00:04]}  Rg3+ {[%clk 0:00:07]} 71. Kc2 {[%clk 0:00:04]}  Rg2+ {[%clk 0:00:07]} 72. Kb1 {[%clk 0:00:03]}  Rg1+ {[%clk 0:00:06]} 73. Ka2 {[%clk 0:00:03]}  Kg3 {[%clk 0:00:06]} 74. Rxa4 {[%clk 0:00:02]}  f4 {[%clk 0:00:06]} 75. Ra7 {[%clk 0:00:03]}  Kf2 {[%clk 0:00:06]} 76. Rf7 {[%clk 0:00:03]}  f3 {[%clk 0:00:07]} 77. b4 {[%clk 0:00:04]}  Ke2 {[%clk 0:00:06]} 78. Kb3 {[%clk 0:00:04]}  Rb1+ {[%clk 0:00:05]} 79. Kc4 {[%clk 0:00:04]}  f2 {[%clk 0:00:05]} 80. a4 {[%clk 0:00:04]}  f1=Q {[%clk 0:00:06]} 81. Rxf1 {[%clk 0:00:03]}  Kxf1 {[%clk 0:00:06]} 82. a5 {[%clk 0:00:03]}  Ke2 {[%clk 0:00:07]} 83. a6 {[%clk 0:00:04]}  Ke3 {[%clk 0:00:06]} 84. b5 {[%clk 0:00:04]}  Ke4 {[%clk 0:00:06]} 85. Kc5 {[%clk 0:00:05]}  Ke5 {[%clk 0:00:06]} 86. a7 {[%clk 0:00:04]}  Ra1 {[%clk 0:00:04]} 87. b6 {[%clk 0:00:05]}  Ke6 {[%clk 0:00:03]} 88. Kc6 {[%clk 0:00:05]}  Rc1+ {[%clk 0:00:03]} 89. Kb7 {[%clk 0:00:05]}  Ra1 {[%clk 0:00:00]} 90. Kc7 {[%clk 0:00:05]} 1-0


[Site "https://www.chess.com"]

[Event "Titled Tuesday Blitz October 31 Late 2023"]
[White "maksimys18"]
[Black "Sramek, Vojtech"]
[BlackFideId "358681"]
[WhiteElo "2507"]
[BlackElo "2282"]
[Result "1-0"]
[Round "4"]
[TimeControl "180+1"]
[Date "2023.10.31"]
[WhiteClock "0:01:42"]
[BlackClock "0:00:33"]
[Board "91"]

1. d4 {[%clk 0:03:00]}  Nf6 {[%clk 0:02:58]} 2. Nf3 {[%clk 0:03:00]}  b6 {[%clk 0:02:57]} 3. c4 {[%clk 0:03:00]}  Bb7 {[%clk 0:02:57]} 4. Nc3 {[%clk 0:02:58]}  Ne4 {[%clk 0:02:57]} 5. Nxe4 {[%clk 0:02:55]}  Bxe4 {[%clk 0:02:58]} 6. Bf4 {[%clk 0:02:55]}  e6 {[%clk 0:02:53]} 7. e3 {[%clk 0:02:55]}  d5 {[%clk 0:02:22]} 8. Bd3 {[%clk 0:02:50]}  Bb4+ {[%clk 0:02:20]} 9. Kf1 {[%clk 0:02:48]}  Bxd3+ {[%clk 0:02:15]} 10. Qxd3 {[%clk 0:02:47]}  O-O {[%clk 0:02:10]} 11. h4 {[%clk 0:02:35]}  c5 {[%clk 0:02:00]} 12. a3 {[%clk 0:02:33]}  Ba5 {[%clk 0:02:00]} 13. Ng5 {[%clk 0:02:25]}  g6 {[%clk 0:01:47]} 14. h5 {[%clk 0:02:24]}  dxc4 {[%clk 0:01:22]} 15. Qxc4 {[%clk 0:02:21]}  Qd5 {[%clk 0:01:07]} 16. Qc2 {[%clk 0:02:12]}  Nd7 {[%clk 0:01:03]} 17. hxg6 {[%clk 0:02:11]}  hxg6 {[%clk 0:01:03]} 18. Rd1 {[%clk 0:01:51]}  Nf6 {[%clk 0:01:01]} 19. Be5 {[%clk 0:01:44]}  Nh5 {[%clk 0:00:43]} 20. Rxh5 {[%clk 0:01:43]}  gxh5 {[%clk 0:00:33]} 21. Qh7# {[%clk 0:01:42]} 1-0


[Site "https://www.chess.com"]

[Event "Titled Tuesday Blitz October 31 Late 2023"]
[White "Zakarian, David"]
[Black "Hambleton, Aman"]
[WhiteFideId "13301276"]
[BlackFideId "2606577"]
[WhiteElo "2415"]
[BlackElo "2786"]
[Result "1-0"]
[Round "4"]
[TimeControl "180+1"]
[Date "2023.10.31"]
[WhiteClock "0:01:29"]
[BlackClock "0:00:02"]
[Board "92"]

1. d4 {[%clk 0:03:00]}  Nf6 {[%clk 0:02:59]} 2. c4 {[%clk 0:02:59]}  e5 {[%clk 0:02:59]} 3. dxe5 {[%clk 0:02:58]}  Ng4 {[%clk 0:02:54]} 4. Nf3 {[%clk 0:02:58]}  Bc5 {[%clk 0:02:53]} 5. e3 {[%clk 0:02:59]}  Nc6 {[%clk 0:02:53]} 6. Nc3 {[%clk 0:02:59]}  O-O {[%clk 0:02:50]} 7. Be2 {[%clk 0:02:58]}  Ncxe5 {[%clk 0:02:48]} 8. O-O {[%clk 0:02:58]}  Nxf3+ {[%clk 0:02:46]} 9. Bxf3 {[%clk 0:02:59]}  Ne5 {[%clk 0:02:47]} 10. Be2 {[%clk 0:02:59]}  Re8 {[%clk 0:02:47]} 11. a3 {[%clk 0:02:59]}  a5 {[%clk 0:02:45]} 12. b3 {[%clk 0:02:55]}  Ra6 {[%clk 0:02:38]} 13. e4 {[%clk 0:02:50]}  Qh4 {[%clk 0:01:32]} 14. Nd5 {[%clk 0:02:32]}  Rg6 {[%clk 0:01:31]} 15. Nf4 {[%clk 0:02:18]}  Rh6 {[%clk 0:01:19]} 16. Nh3 {[%clk 0:02:18]}  Rd6 {[%clk 0:00:23]} 17. Qc2 {[%clk 0:02:14]}  Rg6 {[%clk 0:00:22]} 18. Nf4 {[%clk 0:01:59]}  Rh6 {[%clk 0:00:20]} 19. Nh3 {[%clk 0:01:49]}  d6 {[%clk 0:00:05]} 20. Bg5 {[%clk 0:01:47]}  Qxh3 {[%clk 0:00:01]} 21. gxh3 {[%clk 0:01:46]}  Rg6 {[%clk 0:00:01]} 22. h4 {[%clk 0:01:42]}  h6 {[%clk 0:00:01]} 23. Bh5 {[%clk 0:01:37]}  hxg5 {[%clk 0:00:02]} 24. Bxg6 {[%clk 0:01:37]}  Nxg6 {[%clk 0:00:01]} 25. hxg5 {[%clk 0:01:36]}  Bh3 {[%clk 0:00:01]} 26. Rfe1 {[%clk 0:01:35]}  Re5 {[%clk 0:00:01]} 27. Qd2 {[%clk 0:01:34]}  f6 {[%clk 0:00:01]} 28. gxf6 {[%clk 0:01:32]}  gxf6 {[%clk 0:00:02]} 29. Re3 {[%clk 0:01:31]}  Nf4 {[%clk 0:00:01]} 30. Rg3+ {[%clk 0:01:29]}  Kf7 {[%clk 0:00:01]} 31. Qxf4 {[%clk 0:01:29]}  Be6 {[%clk 0:00:01]} 32. Qh4 {[%clk 0:01:28]}  Bd7 {[%clk 0:00:01]} 33. Qh7+ {[%clk 0:01:28]}  Ke6 {[%clk 0:00:02]} 34. Qg8+ {[%clk 0:01:28]}  Ke7 {[%clk 0:00:02]} 35. Rg7# {[%clk 0:01:29]} 1-0


[Site "https://www.chess.com"]

[Event "Titled Tuesday Blitz October 31 Late 2023"]
[White "Pinto, Daniel"]
[Black "Sipila, Vilka"]
[WhiteFideId "3303144"]
[BlackFideId "505455"]
[WhiteElo "2410"]
[BlackElo "2646"]
[Result "1/2-1/2"]
[Round "4"]
[TimeControl "180+1"]
[Date "2023.10.31"]
[WhiteClock "0:00:05"]
[BlackClock "0:00:48"]
[Board "96"]

1. e4 {[%clk 0:03:00]}  d5 {[%clk 0:02:58]} 2. exd5 {[%clk 0:03:00]}  Qxd5 {[%clk 0:02:59]} 3. Nc3 {[%clk 0:03:00]}  Qe5+ {[%clk 0:03:00]} 4. Qe2 {[%clk 0:02:46]}  Qxe2+ {[%clk 0:02:59]} 5. Bxe2 {[%clk 0:02:47]}  Nf6 {[%clk 0:02:56]} 6. Nf3 {[%clk 0:02:46]}  Bf5 {[%clk 0:02:54]} 7. d3 {[%clk 0:02:25]}  Nc6 {[%clk 0:02:53]} 8. Bf4 {[%clk 0:02:13]}  O-O-O {[%clk 0:02:52]} 9. O-O-O {[%clk 0:02:12]}  Nd5 {[%clk 0:02:47]} 10. Nxd5 {[%clk 0:01:45]}  Rxd5 {[%clk 0:02:47]} 11. Nh4 {[%clk 0:01:45]}  Bd7 {[%clk 0:02:46]} 12. c4 {[%clk 0:01:18]}  Rd4 {[%clk 0:02:42]} 13. g3 {[%clk 0:01:14]}  e5 {[%clk 0:02:38]} 14. Be3 {[%clk 0:01:12]}  Rd6 {[%clk 0:02:38]} 15. Nf3 {[%clk 0:00:58]}  f5 {[%clk 0:02:36]} 16. d4 {[%clk 0:00:49]}  e4 {[%clk 0:02:32]} 17. Ne1 {[%clk 0:00:41]}  Rf6 {[%clk 0:02:00]} 18. h4 {[%clk 0:00:33]}  Rf7 {[%clk 0:01:46]} 19. Ng2 {[%clk 0:00:31]}  Be7 {[%clk 0:01:42]} 20. Nf4 {[%clk 0:00:20]}  Rd8 {[%clk 0:01:41]} 21. Nd5 {[%clk 0:00:18]}  Bf8 {[%clk 0:01:41]} 22. Bg5 {[%clk 0:00:16]}  Ne7 {[%clk 0:01:40]} 23. Nc3 {[%clk 0:00:11]}  c6 {[%clk 0:01:37]} 24. f3 {[%clk 0:00:11]}  exf3 {[%clk 0:01:35]} 25. Bxf3 {[%clk 0:00:11]}  Be6 {[%clk 0:01:35]} 26. b3 {[%clk 0:00:11]}  h6 {[%clk 0:01:34]} 27. Be3 {[%clk 0:00:08]}  Ng8 {[%clk 0:01:33]} 28. Rhe1 {[%clk 0:00:08]}  Bd7 {[%clk 0:01:32]} 29. Bf4 {[%clk 0:00:09]}  Nf6 {[%clk 0:01:32]} 30. d5 {[%clk 0:00:09]}  Bb4 {[%clk 0:01:30]} 31. Bd2 {[%clk 0:00:07]}  Re8 {[%clk 0:01:29]} 32. Rxe8+ {[%clk 0:00:06]}  Bxe8 {[%clk 0:01:30]} 33. Kb2 {[%clk 0:00:06]}  Re7 {[%clk 0:01:30]} 34. a3 {[%clk 0:00:06]}  Bd6 {[%clk 0:01:30]} 35. Re1 {[%clk 0:00:05]}  Rxe1 {[%clk 0:01:24]} 36. Bxe1 {[%clk 0:00:06]}  Be5 {[%clk 0:01:24]} 37. Kc2 {[%clk 0:00:07]}  g5 {[%clk 0:01:23]} 38. hxg5 {[%clk 0:00:07]}  hxg5 {[%clk 0:01:24]} 39. Ne2 {[%clk 0:00:07]}  cxd5 {[%clk 0:01:21]} 40. cxd5 {[%clk 0:00:06]}  Bf7 {[%clk 0:01:20]} 41. Bc3 {[%clk 0:00:07]}  Bxc3 {[%clk 0:01:15]} 42. Nxc3 {[%clk 0:00:08]}  Kd7 {[%clk 0:01:15]} 43. Kd3 {[%clk 0:00:08]}  a6 {[%clk 0:01:15]} 44. Kd4 {[%clk 0:00:08]}  Kd6 {[%clk 0:01:15]} 45. b4 {[%clk 0:00:08]}  b5 {[%clk 0:01:14]} 46. Bg2 {[%clk 0:00:07]}  g4 {[%clk 0:01:12]} 47. Bh1 {[%clk 0:00:04]}  Nh5 {[%clk 0:01:12]} 48. Ne2 {[%clk 0:00:04]}  Bg8 {[%clk 0:01:08]} 49. Bg2 {[%clk 0:00:04]}  Bf7 {[%clk 0:01:07]} 50. Bh1 {[%clk 0:00:04]}  Be8 {[%clk 0:01:06]} 51. Bg2 {[%clk 0:00:04]}  Bd7 {[%clk 0:01:07]} 52. Bh1 {[%clk 0:00:04]}  Bc8 {[%clk 0:01:07]} 53. Bg2 {[%clk 0:00:05]}  Bb7 {[%clk 0:01:08]} 54. Bh1 {[%clk 0:00:04]}  Nf6 {[%clk 0:01:08]} 55. Nc3 {[%clk 0:00:04]}  Nd7 {[%clk 0:01:07]} 56. a4 {[%clk 0:00:03]}  bxa4 {[%clk 0:01:08]} 57. Nxa4 {[%clk 0:00:04]}  Ne5 {[%clk 0:01:05]} 58. Nc5 {[%clk 0:00:04]}  Bc8 {[%clk 0:01:06]} 59. Bg2 {[%clk 0:00:02]}  Ng6 {[%clk 0:01:03]} 60. Bf1 {[%clk 0:00:03]}  f4 {[%clk 0:01:02]} 61. gxf4 {[%clk 0:00:03]}  Nxf4 {[%clk 0:01:03]} 62. Nxa6 {[%clk 0:00:02]}  g3 {[%clk 0:00:59]} 63. Nc5 {[%clk 0:00:02]}  g2 {[%clk 0:00:57]} 64. Bxg2 {[%clk 0:00:03]}  Nxg2 {[%clk 0:00:58]} 65. Ne4+ {[%clk 0:00:03]}  Kd7 {[%clk 0:00:58]} 66. Nc5+ {[%clk 0:00:03]}  Kc7 {[%clk 0:00:58]} 67. Ne6+ {[%clk 0:00:03]}  Kd6 {[%clk 0:00:58]} 68. Nc5 {[%clk 0:00:04]}  Nf4 {[%clk 0:00:56]} 69. Ne4+ {[%clk 0:00:05]}  Kc7 {[%clk 0:00:56]} 70. Ke5 {[%clk 0:00:05]}  Nd3+ {[%clk 0:00:56]} 71. Kd4 {[%clk 0:00:05]}  Nxb4 {[%clk 0:00:57]} 72. d6+ {[%clk 0:00:05]}  Kc6 {[%clk 0:00:57]} 73. Kc4 {[%clk 0:00:03]}  Na6 {[%clk 0:00:56]} 74. Kd4 {[%clk 0:00:04]}  Bf5 {[%clk 0:00:55]} 75. Ke5 {[%clk 0:00:04]}  Bh3 {[%clk 0:00:55]} 76. Kd4 {[%clk 0:00:05]}  Bg2 {[%clk 0:00:53]} 77. Ke5 {[%clk 0:00:05]}  Nb8 {[%clk 0:00:52]} 78. Kd4 {[%clk 0:00:05]}  Nd7 {[%clk 0:00:53]} 79. Ke3 {[%clk 0:00:05]}  Kd5 {[%clk 0:00:52]} 80. Nc3+ {[%clk 0:00:05]}  Kxd6 {[%clk 0:00:52]} 81. Ne4+ {[%clk 0:00:06]}  Ke5 {[%clk 0:00:53]} 82. Nd2 {[%clk 0:00:06]}  Bd5 {[%clk 0:00:51]} 83. Nf3+ {[%clk 0:00:07]}  Kd6 {[%clk 0:00:52]} 84. Nd2 {[%clk 0:00:07]}  Nc5 {[%clk 0:00:52]} 85. Nf3 {[%clk 0:00:07]}  Ne6 {[%clk 0:00:51]} 86. Nd4 {[%clk 0:00:07]}  Nc7 {[%clk 0:00:51]} 87. Nf5+ {[%clk 0:00:07]}  Ke5 {[%clk 0:00:51]} 88. Nd4 {[%clk 0:00:07]}  Na6 {[%clk 0:00:50]} 89. Nf3+ {[%clk 0:00:07]}  Kd6 {[%clk 0:00:49]} 90. Nd4 {[%clk 0:00:07]}  Nb4 {[%clk 0:00:49]} 91. Nf3 {[%clk 0:00:05]}  Nc2+ {[%clk 0:00:49]} 92. Kf4 {[%clk 0:00:06]}  Ke6 {[%clk 0:00:48]} 93. Ng5+ {[%clk 0:00:06]}  Ke7 {[%clk 0:00:49]} 94. Nf3 {[%clk 0:00:05]}  Kf6 {[%clk 0:00:49]} 95. Nd2 {[%clk 0:00:05]}  Nd4 {[%clk 0:00:48]} 96. Ne4+ {[%clk 0:00:05]}  Ke6 {[%clk 0:00:48]} 97. Ng5+ {[%clk 0:00:05]}  Ke7 {[%clk 0:00:48]} 98. Ke5 {[%clk 0:00:05]}  Ne6 {[%clk 0:00:48]} 99. Nxe6 {[%clk 0:00:05]} 1/2-1/2


[Site "https://www.chess.com"]

[Event "Titled Tuesday Blitz October 31 Late 2023"]
[White "hristos03"]
[Black "Ozates, Tuna"]
[BlackFideId "6354521"]
[WhiteElo "2409"]
[BlackElo "2643"]
[Result "1-0"]
[Round "4"]
[TimeControl "180+1"]
[Date "2023.10.31"]
[WhiteClock "0:00:03"]
[BlackClock "0:00:01"]
[Board "97"]

1. e4 {[%clk 0:02:59]}  e5 {[%clk 0:03:00]} 2. Nf3 {[%clk 0:02:59]}  Nc6 {[%clk 0:03:00]} 3. Bb5 {[%clk 0:02:58]}  a6 {[%clk 0:03:00]} 4. Ba4 {[%clk 0:02:56]}  Nf6 {[%clk 0:03:00]} 5. O-O {[%clk 0:02:55]}  Be7 {[%clk 0:03:00]} 6. Re1 {[%clk 0:02:54]}  b5 {[%clk 0:03:00]} 7. Bb3 {[%clk 0:02:54]}  O-O {[%clk 0:03:01]} 8. a4 {[%clk 0:02:52]}  Bb7 {[%clk 0:02:59]} 9. d3 {[%clk 0:02:49]}  d6 {[%clk 0:02:55]} 10. Nbd2 {[%clk 0:02:41]}  h6 {[%clk 0:02:51]} 11. c3 {[%clk 0:02:37]}  Re8 {[%clk 0:02:52]} 12. Nf1 {[%clk 0:02:35]}  Bf8 {[%clk 0:02:52]} 13. Ne3 {[%clk 0:02:27]}  g6 {[%clk 0:02:40]} 14. h3 {[%clk 0:02:24]}  Bg7 {[%clk 0:02:26]} 15. a5 {[%clk 0:01:51]}  Ne7 {[%clk 0:02:23]} 16. Bc2 {[%clk 0:01:45]}  c5 {[%clk 0:02:20]} 17. b3 {[%clk 0:01:42]}  Nc6 {[%clk 0:02:14]} 18. Bb2 {[%clk 0:01:34]}  Nxa5 {[%clk 0:02:11]} 19. c4 {[%clk 0:01:19]}  Nc6 {[%clk 0:02:07]} 20. Nd5 {[%clk 0:01:16]}  Nxd5 {[%clk 0:02:06]} 21. cxd5 {[%clk 0:01:08]}  Nb4 {[%clk 0:02:05]} 22. Qd2 {[%clk 0:01:02]}  Kh7 {[%clk 0:02:00]} 23. Bc3 {[%clk 0:00:53]}  a5 {[%clk 0:01:56]} 24. Bxb4 {[%clk 0:00:49]}  axb4 {[%clk 0:01:56]} 25. Reb1 {[%clk 0:00:36]}  Qb6 {[%clk 0:01:36]} 26. Qc1 {[%clk 0:00:34]}  Rxa1 {[%clk 0:01:23]} 27. Rxa1 {[%clk 0:00:34]}  Ra8 {[%clk 0:01:24]} 28. Rxa8 {[%clk 0:00:34]}  Bxa8 {[%clk 0:01:25]} 29. Qa1 {[%clk 0:00:32]}  Bb7 {[%clk 0:01:25]} 30. Nd2 {[%clk 0:00:21]}  h5 {[%clk 0:01:16]} 31. g3 {[%clk 0:00:13]}  Bh6 {[%clk 0:01:16]} 32. Nf3 {[%clk 0:00:11]}  Bc8 {[%clk 0:01:12]} 33. Kg2 {[%clk 0:00:09]}  Qb7 {[%clk 0:01:04]} 34. Qa5 {[%clk 0:00:05]}  Qd7 {[%clk 0:01:05]} 35. Ng1 {[%clk 0:00:06]}  Bg5 {[%clk 0:01:05]} 36. h4 {[%clk 0:00:05]}  Bd8 {[%clk 0:01:05]} 37. Qa8 {[%clk 0:00:04]}  g5 {[%clk 0:01:00]} 38. hxg5 {[%clk 0:00:04]}  Bxg5 {[%clk 0:01:01]} 39. Bd1 {[%clk 0:00:04]}  h4 {[%clk 0:01:00]} 40. gxh4 {[%clk 0:00:04]}  Bxh4 {[%clk 0:01:01]} 41. Bf3 {[%clk 0:00:04]}  f6 {[%clk 0:00:52]} 42. Qa5 {[%clk 0:00:03]}  Bg5 {[%clk 0:00:36]} 43. Qb6 {[%clk 0:00:03]}  Bf4 {[%clk 0:00:30]} 44. Qb8 {[%clk 0:00:03]}  Kg6 {[%clk 0:00:16]} 45. Kf1 {[%clk 0:00:03]}  Kh7 {[%clk 0:00:14]} 46. Qb6 {[%clk 0:00:02]}  Bh2 {[%clk 0:00:11]} 47. Qb8 {[%clk 0:00:01]}  Kh6 {[%clk 0:00:09]} 48. Ne2 {[%clk 0:00:01]}  Qh3+ {[%clk 0:00:07]} 49. Ke1 {[%clk 0:00:01]}  Qxf3 {[%clk 0:00:02]} 50. Qxd6 {[%clk 0:00:02]}  Qg4 {[%clk 0:00:01]} 51. Qf8+ {[%clk 0:00:02]}  Qg7 {[%clk 0:00:01]} 52. Qxc8 {[%clk 0:00:03]}  Qg2 {[%clk 0:00:01]} 53. Qf5 {[%clk 0:00:03]}  Qg5 {[%clk 0:00:02]} 54. Qh3+ {[%clk 0:00:03]}  Qh5 {[%clk 0:00:02]} 55. Qg2 {[%clk 0:00:03]}  Qh3 {[%clk 0:00:01]} 56. Qxh3+ {[%clk 0:00:03]} 1-0


[Site "https://www.chess.com"]

[Event "Titled Tuesday Blitz October 31 Late 2023"]
[White "Lopez Idarraga, Daniel Eduardo"]
[Black "Haydon, David L"]
[WhiteFideId "4405501"]
[BlackFideId "415405"]
[WhiteElo "2408"]
[BlackElo "2615"]
[Result "0-1"]
[Round "4"]
[TimeControl "180+1"]
[Date "2023.10.31"]
[WhiteClock "0:00:47"]
[BlackClock "0:00:55"]
[Board "98"]

1. d4 {[%clk 0:02:53]}  Nf6 {[%clk 0:02:56]} 2. c4 {[%clk 0:02:52]}  e6 {[%clk 0:02:56]} 3. Nc3 {[%clk 0:02:52]}  d5 {[%clk 0:02:55]} 4. cxd5 {[%clk 0:02:51]}  exd5 {[%clk 0:02:55]} 5. Bg5 {[%clk 0:02:52]}  c6 {[%clk 0:02:54]} 6. e3 {[%clk 0:02:52]}  Be6 {[%clk 0:02:53]} 7. Bd3 {[%clk 0:02:51]}  Nbd7 {[%clk 0:02:54]} 8. Nf3 {[%clk 0:02:49]}  Be7 {[%clk 0:02:50]} 9. Qc2 {[%clk 0:02:47]}  a6 {[%clk 0:02:49]} 10. h3 {[%clk 0:02:45]}  g6 {[%clk 0:02:48]} 11. O-O-O {[%clk 0:02:37]}  b5 {[%clk 0:02:44]} 12. Kb1 {[%clk 0:02:37]}  Rc8 {[%clk 0:02:40]} 13. Ne5 {[%clk 0:02:36]}  Nxe5 {[%clk 0:02:39]} 14. dxe5 {[%clk 0:02:37]}  Nd7 {[%clk 0:02:39]} 15. Bxe7 {[%clk 0:02:36]}  Qxe7 {[%clk 0:02:40]} 16. f4 {[%clk 0:02:36]}  c5 {[%clk 0:02:34]} 17. g4 {[%clk 0:02:34]}  c4 {[%clk 0:02:31]} 18. Be2 {[%clk 0:02:29]}  Nb6 {[%clk 0:02:30]} 19. Bf3 {[%clk 0:02:29]}  Rc5 {[%clk 0:02:24]} 20. e4 {[%clk 0:02:24]}  dxe4 {[%clk 0:02:12]} 21. Nxe4 {[%clk 0:02:25]}  O-O {[%clk 0:02:02]} 22. Nxc5 {[%clk 0:02:23]}  Qxc5 {[%clk 0:02:02]} 23. Rd6 {[%clk 0:02:18]}  Na4 {[%clk 0:01:46]} 24. Rhd1 {[%clk 0:02:16]}  Qe3 {[%clk 0:01:44]} 25. Qe4 {[%clk 0:02:06]}  Qf2 {[%clk 0:01:36]} 26. R6d2 {[%clk 0:01:30]}  Qg3 {[%clk 0:01:34]} 27. f5 {[%clk 0:01:24]}  Bc8 {[%clk 0:01:17]} 28. Rd8 {[%clk 0:01:15]}  gxf5 {[%clk 0:01:06]} 29. gxf5 {[%clk 0:00:59]}  Qg5 {[%clk 0:00:57]} 30. Qg4 {[%clk 0:00:47]}  Bxf5+ {[%clk 0:00:55]} 0-1


[Site "https://www.chess.com"]

[Event "Titled Tuesday Blitz October 31 Late 2023"]
[White "Spichkin, Alexander"]
[Black "NelsonLinda"]
[WhiteFideId "4144074"]
[WhiteElo "2408"]
[BlackElo "2588"]
[Result "1-0"]
[Round "4"]
[TimeControl "180+1"]
[Date "2023.10.31"]
[WhiteClock "0:01:03"]
[BlackClock "0:00:40"]
[Board "99"]

1. f4 {[%clk 0:03:00]}  g6 {[%clk 0:02:42]} 2. Nf3 {[%clk 0:02:59]}  Bg7 {[%clk 0:02:40]} 3. d3 {[%clk 0:02:59]}  d5 {[%clk 0:02:37]} 4. e3 {[%clk 0:02:59]}  Nd7 {[%clk 0:02:35]} 5. Nc3 {[%clk 0:02:53]}  c6 {[%clk 0:02:34]} 6. Be2 {[%clk 0:02:52]}  e5 {[%clk 0:02:33]} 7. e4 {[%clk 0:02:51]}  d4 {[%clk 0:02:28]} 8. Nb1 {[%clk 0:02:48]}  c5 {[%clk 0:02:26]} 9. O-O {[%clk 0:02:47]}  Ne7 {[%clk 0:02:26]} 10. Nbd2 {[%clk 0:02:45]}  O-O {[%clk 0:02:19]} 11. Nc4 {[%clk 0:02:44]}  exf4 {[%clk 0:02:16]} 12. Bxf4 {[%clk 0:02:43]}  Nb6 {[%clk 0:02:09]} 13. Nxb6 {[%clk 0:02:32]}  Qxb6 {[%clk 0:02:09]} 14. Rb1 {[%clk 0:02:29]}  Be6 {[%clk 0:02:08]} 15. a3 {[%clk 0:02:11]}  h6 {[%clk 0:02:08]} 16. Qe1 {[%clk 0:02:11]}  g5 {[%clk 0:02:05]} 17. Be5 {[%clk 0:02:08]}  f6 {[%clk 0:01:59]} 18. Bg3 {[%clk 0:02:07]}  Ng6 {[%clk 0:01:58]} 19. b4 {[%clk 0:02:03]}  Rf7 {[%clk 0:01:32]} 20. Nd2 {[%clk 0:01:57]}  Ne5 {[%clk 0:01:27]} 21. Bxe5 {[%clk 0:01:54]}  fxe5 {[%clk 0:01:27]} 22. Rxf7 {[%clk 0:01:54]}  Bxf7 {[%clk 0:01:28]} 23. bxc5 {[%clk 0:01:53]}  Qxc5 {[%clk 0:01:28]} 24. Rxb7 {[%clk 0:01:53]}  Qxc2 {[%clk 0:01:28]} 25. Nf1 {[%clk 0:01:39]}  Qc6 {[%clk 0:01:26]} 26. Qb1 {[%clk 0:01:36]}  Be6 {[%clk 0:01:18]} 27. Ng3 {[%clk 0:01:34]}  Rf8 {[%clk 0:01:10]} 28. Nh5 {[%clk 0:01:27]}  Bh8 {[%clk 0:01:10]} 29. Rxa7 {[%clk 0:01:14]}  Qc5 {[%clk 0:00:57]} 30. Ra6 {[%clk 0:01:09]}  Ba2 {[%clk 0:00:50]} 31. Qxa2+ {[%clk 0:01:06]}  Rf7 {[%clk 0:00:40]} 32. Ra8+ {[%clk 0:01:03]} 1-0


[Site "https://www.chess.com"]